Cogmind - Beta 13 @@@ ROGUE MODE // 2024.05.29 @ 05:23:16 Player: BrainTooSmol Result: Smashed by cave-in Performance ------------- Evolutions (6) 3000 Regions Visited (21) 4200 Robots Destroyed (178) 890 Value Destroyed (4521) 4521 Prototype IDs (24) 480 Alien Tech Used (0) 0 Bonus (1394) 1394 TOTAL SCORE: 14485 Bonus ------- High Alert Combat Kills 51 Follower Combat Kills 1130 Met Data Miner 300 Friendly Fire -87 Cogmind --------- Core Integrity 0/1150 Matter 50/300 Energy 81/100 System Corruption 67% Temperature Cool (0) Movement Core (50) Location -4/Factory Parts ------- > --- POWER (1) -------- (None) > --- PROPULSION (3) --- (None) > --- UTILITY (13) ----- (None) > --- WEAPON (2) ------- (None) > --- INVENTORY (5) ---- (None) Peak State ------------ > --- POWER ------------ Fusion Reactor > --- PROPULSION ------- Advanced Surge Thruster Advanced Surge Thruster Advanced Surge Thruster > --- UTILITY ---------- Advanced Gravity Neutralizer Experimental Sensor Array Improved Signal Interpreter ECM Suite Experimental Utility Shielding Advanced Hacking Suite Advanced Hacking Suite Advanced Hacking Suite Advanced Hacking Suite Advanced Hacking Suite Experimental Hacking Suite Advanced System Shield Advanced System Shield > --- WEAPON ----------- Mini Smartbomb Launcher CR-A16's Pointy Stick > --- INVENTORY -------- Matter Compressor Advanced Hacking Suite [Rating: 117] Favorites ----------- Power Light Deuterium Engine Engine Light Deuterium Engine Power Core Micro Fission Core Reactor Fusion Reactor Propulsion Cooled VTOL Module Treads Improved Treads Leg Aluminum Leg Wheel Wheel Flight Unit Cooled VTOL Module Utility Advanced Hacking Suite Device Experimental Sensor Array Storage Large Storage Unit Processor Improved Signal Interpreter Hackware Advanced Hacking Suite Protection Experimental Utility Shielding Weapon CR-A16's Pointy Stick Energy Gun Small Laser Ballistic Gun Heavy Assault Rifle Launcher Mini Smartbomb Launcher Impact Weapon Maul Slashing Weapon Scythe Piercing Weapon CR-A16's Pointy Stick Build | -11 -10 -10 -10 -9 -8 -7 -7 -7 -7 -7 -6 -6 -6 -6 -6 -5 -5 -5 -5 -5 -4 ------- Run | Yrd Mat Min Exi Min Mat Fac Was Fac Low Zio Pro Fac Low Low Dat Pro Fac Was Fac Ext Fac Slots Evolved 12 | . . . . . 4 2 . . . . . 2 . . . . 2 . . . 2 Power . | . . . . . . . . . . . . . . . . . . . . . . Propulsion 1 | . . . . . . . . . . . . . . . . . 1 . . . . Utility 11 | . . . . . 4 2 . . . . . 2 . . . . 1 . . . 2 Weapon . | . . . . . . . . . . . . . . . . . . . . . . Parts Attached 180 | 1 4 4 . 7 36 15 . 21 . . . 31 . . . 3 12 . 36 2 8 Power 16 | . . 1 . 1 3 . . 1 . . . 3 . . . 1 2 . 2 1 1 Engine 10 | . . 1 . 1 3 . . 1 . . . 3 . . . . . . . 1 . Core 5 | . . . . . . . . . . . . . . . . 1 2 . 2 . . Reactor 1 | . . . . . . . . . . . . . . . . . . . . . 1 Propulsion 32 | . . 2 . 1 9 2 . 1 . . . 2 . . . . 1 . 13 . 1 Treads 6 | . . 1 . 1 4 . . . . . . . . . . . . . . . . Leg . | . . . . . . . . . . . . . . . . . . . . . . Wheel 5 | . . 1 . . 4 . . . . . . . . . . . . . . . . Hover . | . . . . . . . . . . . . . . . . . . . . . . Flight 21 | . . . . . 1 2 . 1 . . . 2 . . . . 1 . 13 . 1 Utility 86 | 1 . . . 1 10 11 . 17 . . . 19 . . . . 7 . 15 . 5 Device 38 | 1 . . . . 2 3 . 11 . . . 7 . . . . 3 . 8 . 3 Storage 2 | . . . . 1 . . . . . . . . . . . . . . . . 1 Processor 5 | . . . . . 1 2 . . . . . 2 . . . . . . . . . Hackware 29 | . . . . . 1 6 . 6 . . . 9 . . . . 3 . 3 . 1 Protection 12 | . . . . . 6 . . . . . . 1 . . . . 1 . 4 . . Artifact . | . . . . . . . . . . . . . . . . . . . . . . Weapon 46 | . 4 1 . 4 14 2 . 2 . . . 7 . . . 2 2 . 6 1 1 Energy Gun . | . . . . . . . . . . . . . . . . . . . . . . Energy Cannon . | . . . . . . . . . . . . . . . . . . . . . . Ballistic Gun 21 | . 4 1 . 4 11 1 . . . . . . . . . . . . . . . Ballistic Cannon . | . . . . . . . . . . . . . . . . . . . . . . Launcher 15 | . . . . . 1 . . 1 . . . 5 . . . 1 2 . 3 1 1 Special Weapon . | . . . . . . . . . . . . . . . . . . . . . . Impact Weapon 1 | . . . . . 1 . . . . . . . . . . . . . . . . Slashing Weapon 3 | . . . . . 1 1 . 1 . . . . . . . . . . . . . Piercing Weapon 6 | . . . . . . . . . . . . 2 . . . 1 . . 3 . . Special Melee Weapon . | . . . . . . . . . . . . . . . . . . . . . . Unidentified Prototypes 4 | . . . . . 2 1 . . . . . 1 . . . . . . . . . Parts Lost 51 | . . 3 . 1 13 . . 3 . . . 2 . . . 3 . . 4 1 21 Power 7 | . . 1 . 1 2 . . . . . . . . . . 1 . . . 1 1 Propulsion 13 | . . . . . 4 . . 1 . . . 1 . . . . . . 4 . 3 Utility 25 | . . . . . 5 . . 2 . . . 1 . . . 2 . . . . 15 Weapon 6 | . . 2 . . 2 . . . . . . . . . . . . . . . 2 Highest Loss Streak 8 | . . 1 . 1 2 . . 1 . . . 1 . . . 2 . . 3 1 8 To Critical Strikes 1 | . . 1 . . . . . . . . . . . . . . . . . . . Average Slot Usage (%) 82 | . 100 97 85 89 83 92 92 91 92 92 92 90 93 93 93 91 92 100 92 94 24 Engine 5 | . 14 13 14 13 7 7 7 6 7 7 7 4 6 6 6 5 . . . 4 . Core 1 | . . . . . . . . . . . . . . . . . 5 5 4 . . Treads 1 | . . 6 14 14 9 . . . . . . . . . . . . . . . . Leg 1 | . 28 14 . . . . . . . . . . . . . . . . . . . Wheel 1 | . . 6 14 14 8 . . . . . . . . . . . . . . . . Flight 9 | . . . . . . 14 15 14 15 15 15 11 13 13 13 13 15 17 14 17 2 Device 8 | . 14 14 14 14 10 14 7 9 7 7 7 4 6 6 6 6 10 5 6 5 2 Storage 2 | . 14 14 14 14 9 . . . . . . . . . . . . . . . . Processor 4 | . . . . . 6 6 7 7 7 7 7 7 6 6 6 6 5 5 5 5 1 Hackware 31 | . . . . . 2 38 46 42 46 46 46 50 53 53 53 51 38 47 46 47 12 Protection 2 | . . . . . 11 . . . . . . 1 . . . . 4 5 3 5 1 Ballistic Gun 4 | . 28 26 14 19 17 2 . . . . . . . . . . . . . . . Slashing Weapon 1 | . . . . . . 5 7 7 7 7 7 . . . . . . . . . . Piercing Weapon 1 | . . . . . . . . . . . . 5 . . . 5 5 5 4 5 . Naked Turns 1637 | . . . . . . . . . . . . . . . . . . . . . 1637 Heaviest Build 48 | 14 17 17 10 28 48 46 8 10 8 8 8 11 10 10 10 10 16 14 14 10 23 Greatest Support 46 | 20 20 23 10 10 46 16 10 10 10 10 10 12 12 12 12 12 19 19 19 12 34 Greatest Overweight (x) 4 | . . 1 . 2 4 2 . 1 . . . . . . . . . . 1 . . Average Overweight (x) . | . . . . . 2 . . . . . . . . . . . . . . . . Largest Inventory Capacity 15 | 8 8 8 8 15 15 15 5 5 5 5 5 5 5 5 5 5 5 5 5 5 5 Average Capacity 6 | 8 8 8 8 12 15 5 5 5 5 5 5 5 5 5 5 5 5 5 5 5 5 Most Carried 15 | 7 8 8 7 15 15 15 5 5 5 5 5 5 5 5 5 5 5 5 5 5 5 Average Carried 5 | 6 7 6 7 8 14 4 5 4 5 5 5 4 5 5 5 4 4 5 4 4 1 Final Capacity 15 | 8 8 8 8 15 15 5 5 5 5 5 5 5 5 5 5 5 5 5 5 5 5 Final Carried 15 | 7 8 7 7 14 15 5 5 5 5 5 5 5 5 5 5 5 5 5 4 5 . Class Distribution -------------------- 49% | Wizard-Sprinter 21% | Mutant 12% | Hacker-Sprinter 8% | Scavenger-Mutant 6% | Wizard-Mutant Dominant Class ---------------- Mutant | -10/Materials Mutant | -10/Mines Mutant | -10/Exiles Mutant | -9/Mines Scavenger-Mutant | -8/Materials Hacker-Sprinter | -7/Factory Wizard-Sprinter | -7/Waste Wizard-Sprinter | -7/Factory Wizard-Sprinter | -7/Lower Caves Wizard-Sprinter | -7/Zion Wizard-Sprinter | -6/Proximity Caves Wizard-Sprinter | -6/Factory Wizard-Sprinter | -6/Lower Caves Wizard-Sprinter | -6/Lower Caves Wizard-Sprinter | -6/Data Miner Wizard-Sprinter | -5/Proximity Caves Wizard-Sprinter | -5/Factory Wizard-Sprinter | -5/Waste Wizard-Sprinter | -5/Factory Wizard-Sprinter | -5/Extension Mutant | -4/Factory Resources | -11 -10 -10 -10 -9 -8 -7 -7 -7 -7 -7 -6 -6 -6 -6 -6 -5 -5 -5 -5 -5 -4 ----------- Run | Yrd Mat Min Exi Min Mat Fac Was Fac Low Zio Pro Fac Low Low Dat Pro Fac Was Fac Ext Fac Matter Collected 4693 | 222 232 126 . 97 1346 203 . 373 25 . . 645 25 . . 10 324 41 535 200 289 Remotely . | . . . . . . . . . . . . . . . . . . . . . . Salvage Created 5026 | 108 388 81 . 60 2011 218 . 231 . . . 723 35 . . . 384 229 197 217 144 Parts 341 | 4 32 6 . 11 116 15 . 13 . . . 55 5 . . . 33 6 24 7 14 Haulers Intercepted 4 | . . . . . 4 . . . . . . . . . . . . . . . . Recyclers Shooed 8 | . . . . . 4 2 . . . . . 1 . . . . . . 1 . . Parts Field Recycled . | . . . . . . . . . . . . . . . . . . . . . . Retrieved Matter . | . . . . . . . . . . . . . . . . . . . . . . Parts Self-Destructed 4 | . . . . . . . . . . . . . 4 . . . . . . . . Prevented . | . . . . . . . . . . . . . . . . . . . . . . Kills | -11 -10 -10 -10 -9 -8 -7 -7 -7 -7 -7 -6 -6 -6 -6 -6 -5 -5 -5 -5 -5 -4 ------- Run | Yrd Mat Min Exi Min Mat Fac Was Fac Low Zio Pro Fac Low Low Dat Pro Fac Was Fac Ext Fac Combat Hostiles Destroyed 103 | . 11 7 . 4 33 . . 3 . . . 9 3 . . . 9 1 6 3 14 Melee 2 | . . . . . . . . . . . . . . . . . . . 1 1 . Guns 52 | . 11 7 . 4 30 . . . . . . . . . . . . . . . . AOE 49 | . . . . . 3 . . 3 . . . 9 3 . . . 9 1 5 2 14 Classes Destroyed 18 | 2 4 2 . . 7 . . . . . . . . . . . . 1 1 1 . Worker 15 | . . . . . 2 . . 1 . . . 6 . . . . 3 . 3 . . Builder 8 | . . . . . 1 . . 1 . . . 3 . . . . . . 2 1 . Tunneler 3 | 1 . . . . . . . . . . . 1 . . . . . . 1 . . Hauler 4 | . . . . . 4 . . . . . . . . . . . . . . . . Recycler 6 | 1 . . . . 1 . . 1 . . . 2 . . . . 1 . . . . Mechanic 1 | . . . . . . . . . . . . . . . . . . . 1 . . Operator 6 | . 2 . . . 2 . . . . . . 1 . . . . . . . . 1 Watcher 34 | . 3 . . . 5 7 . 2 . . . 5 . . . . 6 . 4 2 . Swarmer 56 | . 6 3 . 4 3 . . . . . . 9 3 . . . 9 . 5 . 14 Grunt 30 | . 5 . . . 19 . . 3 . . . . . . . . . . 1 2 . Brawler 1 | . . . . . 1 . . . . . . . . . . . . . . . . Duelist 1 | . . . . . 1 . . . . . . . . . . . . . . . . Sentry 8 | . . . . . 8 . . . . . . . . . . . . . . . . Demolisher 2 | . . 2 . . . . . . . . . . . . . . . . . . . Hunter 1 | . . . . . 1 . . . . . . . . . . . . . . . . Behemoth 1 | . . . . . . . . . . . . . . . . . . . . 1 . Compactor 1 | . . . . . . . . . . . . . . . . . . 1 . . . Assembled 2 | . . 2 . . . . . . . . . . . . . . . . . . . Best Kill Streak 7 | 2 3 3 . 4 4 1 . 4 . . . 4 5 . . . 7 1 5 4 5 Combat Bots Only 5 | . 3 3 . 4 4 . . 3 . . . 3 3 . . . 5 1 4 2 5 Max Kills in Single Turn 4 | 1 1 2 . 1 3 1 . 1 . . . 4 3 . . . 4 1 3 1 4 Gunslinging 1 | . . 1 . . . . . . . . . . . . . . . . . . . Exploded 4 | . . . . . 3 . . 1 . . . 3 3 . . . 3 1 3 1 4 Melee 1 | . . . . . . . . . . . . . . . . . . . 1 1 . Uniques/NPCs Destroyed . | . . . . . . . . . . . . . . . . . . . . . . Combat | -11 -10 -10 -10 -9 -8 -7 -7 -7 -7 -7 -6 -6 -6 -6 -6 -5 -5 -5 -5 -5 -4 -------- Run | Yrd Mat Min Exi Min Mat Fac Was Fac Low Zio Pro Fac Low Low Dat Pro Fac Was Fac Ext Fac Hostile Shots Fired 516 | . 30 20 . 42 153 49 . 32 . . 2 40 3 . . 21 13 . 46 23 42 Missed 192 | . 11 . . 4 42 28 . 14 . . 2 21 1 . . 13 7 . 17 10 22 Damage Taken 7526 | . 186 399 . 342 1709 207 . 355 . . . 323 29 . . 222 196 . 947 270 2341 Core 2684 | . 56 53 . 91 175 121 . 120 . . . 184 12 . . 73 99 . 453 97 1150 Absorbed by Shields 90 | . . . . . . 31 . . . . . . . . . . . . . 59 . Redirected to Shielding 201 | . . . . . . . . . . . . . . . . . 33 . 48 27 93 Regen/Repaired (Parts) 437 | . . . . . 11 . . 88 . . . 57 . . . . 17 6 159 . 99 Core Remaining (%) 59 | 100 . . . 20 68 . . . . . 65 . . . . 68 . . . 35 . Volleys Fired 277 | 4 32 17 . 26 143 9 . 4 . . . 6 1 . . 3 5 1 10 5 11 Largest 2 | 2 2 2 . 2 2 2 . 1 . . . 1 1 . . 1 1 1 1 1 1 Hottest 80 | 60 46 46 . 40 53 48 . 30 . . . 80 80 . . 80 80 80 80 80 80 Shots Fired 483 | 8 64 28 . 37 282 18 . 4 . . . 6 1 . . 3 5 1 10 5 11 Gun 435 | 8 64 28 . 37 280 18 . . . . . . . . . . . . . . . Cannon . | . . . . . . . . . . . . . . . . . . . . . . Launcher 48 | . . . . . 2 . . 4 . . . 6 1 . . 3 5 1 10 5 11 Special . | . . . . . . . . . . . . . . . . . . . . . . Kinetic 431 | 4 64 28 . 37 280 18 . . . . . . . . . . . . . . . Thermal 4 | 4 . . . . . . . . . . . . . . . . . . . . . Explosive 48 | . . . . . 2 . . 4 . . . 6 1 . . 3 5 1 10 5 11 Electromagnetic . | . . . . . . . . . . . . . . . . . . . . . . Robot Hit Streak 23 | 2 14 7 . 3 23 4 . 2 . . . 4 . . . . 5 . . 6 . Robot Miss Streak 5 | 1 3 4 . 5 5 4 . 1 . . . . . . . . . . . . . Penetration Max . | . . . . . . . . . . . . . . . . . . . . . . Secondary Targets 8 | . 1 2 . 2 3 . . . . . . . . . . . . . . . . Max Gunslinging Chain 1 | . 1 1 . 1 1 . . . . . . . . . . . . . . . . Shots Hit Robots 365 | 6 40 19 . 18 203 19 . 12 . . . 23 . . . . 9 . 5 9 2 Core Hits 242 | 3 23 10 . 9 92 9 . 10 . . . 20 3 . . . 15 1 24 7 16 Critical Kills . | . . . . . . . . . . . . . . . . . . . . . . Critical Parts Destroyed 1 | . . . . . 1 . . . . . . . . . . . . . . . . Critical Strikes 6 | . . . . . 1 1 . . . . . 3 . . . . 1 . . . . Destroy 1 | . . . . . 1 . . . . . . . . . . . . . . . . Sever 1 | . . . . . . 1 . . . . . . . . . . . . . . . Impale 4 | . . . . . . . . . . . . 3 . . . . 1 . . . . Melee Attacks 386 | . . . . . 6 73 . 80 . 1 1 71 . . . 18 50 . 43 13 30 Impact 1 | . . . . . 1 . . . . . . . . . . . . . . . . Slashing 168 | . . . . . 5 73 . 80 . 1 1 8 . . . . . . . . . Piercing 217 | . . . . . . . . . . . . 63 . . . 18 50 . 43 13 30 Sneak Attacks 20 | . . . . . . . . 2 . . . 13 . . . . 3 . 1 1 . Combat Hostiles . | . . . . . . . . . . . . . . . . . . . . . . Follow-up Attacks . | . . . . . . . . . . . . . . . . . . . . . . Damage Inflicted 14161 | 74 531 238 . 141 3456 518 . 705 . . . 2139 235 . . . 1527 122 1925 776 1774 Guns 4359 | 74 531 238 . 141 3246 129 . . . . . . . . . . . . . . . Cannons . | . . . . . . . . . . . . . . . . . . . . . . Explosions 6356 | . . . . . 210 . . 301 . . . 744 235 . . . 1086 122 1642 346 1670 Melee 3446 | . . . . . . 389 . 404 . . . 1395 . . . . 441 . 283 430 104 Ramming . | . . . . . . . . . . . . . . . . . . . . . . Kinetic 4327 | 42 531 238 . 141 3246 129 . . . . . . . . . . . . . . . Thermal 32 | 32 . . . . . . . . . . . . . . . . . . . . . Explosive 6356 | . . . . . 210 . . 301 . . . 744 235 . . . 1086 122 1642 346 1670 Electromagnetic . | . . . . . . . . . . . . . . . . . . . . . . Impact . | . . . . . . . . . . . . . . . . . . . . . . Slashing 831 | . . . . . . 389 . 404 . . . 38 . . . . . . . . . Piercing 2615 | . . . . . . . . . . . . 1357 . . . . 441 . 283 430 104 Highest Corruption 67 | . 2 2 2 2 3 1 11 11 9 9 . . . . . 8 . . . . 67 Average Corruption 20 | . 2 2 2 2 2 1 5 6 9 9 . . . . . 5 . . . . 59 Corruption Purged 14 | . . . . . . . . 14 . . . . . . . . . . . . . Corruption Blocked . | . . . . . . . . . . . . . . . . . . . . . . Effects 245 | . 3 8 2 5 23 . 1 80 2 . . . . . . . . . . . 121 Message Errors 65 | . 1 1 . 2 9 . 1 19 1 . . . . . . . . . . . 31 Matter Fused 69 | . . 5 . 1 5 . . 18 . . . . . . . . . . . . 40 Heat Flow Errors 28 | . 1 1 . . 3 . . 7 1 . . . . . . . . . . . 15 Energy Discharges 25 | . 1 . . . 2 . . 10 . . . . . . . . . . . . 12 Parts Rejected 1 | . . . . . 1 . . . . . . . . . . . . . . . . Parts Fused 1 | . . . . . . . . 1 . . . . . . . . . . . . . Data Loss (minor) 36 | . . . 1 . 2 . . 16 . . . . . . . . . . . . 17 Data Loss (major) 17 | . . 1 . 2 1 . . 8 . . . . . . . . . . . . 5 Alerts 3 | . . . 1 . . . . 1 . . . . . . . . . . . . 1 Overload Shots . | . . . . . . . . . . . . . . . . . . . . . . Overflow Damage 1124 | . . . . . 31 33 . 86 . . . 449 . . . . 246 . 96 101 82 Projectiles . | . . . . . . . . . . . . . . . . . . . . . . Explosions 320 | . . . . . 31 . . . . . . 28 . . . . 52 . 90 37 82 Melee 804 | . . . . . . 33 . 86 . . . 421 . . . . 194 . 6 64 . Knockbacks . | . . . . . . . . . . . . . . . . . . . . . . Impact . | . . . . . . . . . . . . . . . . . . . . . . Kinetic . | . . . . . . . . . . . . . . . . . . . . . . Secondary . | . . . . . . . . . . . . . . . . . . . . . . Self-Inflicted Damage 77 | . . . . . 49 . . . . . . 10 . . . . . . . . 18 Shots 3 | . . . . . 1 . . . . . . 1 . . . . . . . . 1 Rammed . | . . . . . . . . . . . . . . . . . . . . . . Targets Rammed . | . . . . . . . . . . . . . . . . . . . . . . Kicked . | . . . . . . . . . . . . . . . . . . . . . . Crushed . | . . . . . . . . . . . . . . . . . . . . . . Highest Temperature 278 | . 211 199 . . 219 . . 278 196 . . 44 24 . . 24 48 30 67 30 263 Average Temperature 62 | . 69 43 . . 31 . . 118 101 . . 25 18 . . 14 21 17 24 15 80 Received Heat Transfer 1515 | . 81 120 . 18 846 46 . 18 . . . 81 . . . . 39 . 153 77 36 Siege Activations . | . . . . . . . . . . . . . . . . . . . . . . Robots Corrupted . | . . . . . . . . . . . . . . . . . . . . . . Combat Hostiles . | . . . . . . . . . . . . . . . . . . . . . . Parts Fried . | . . . . . . . . . . . . . . . . . . . . . . Impact Corruptions . | . . . . . . . . . . . . . . . . . . . . . . Robots Melted . | . . . . . . . . . . . . . . . . . . . . . . Combat Hostiles . | . . . . . . . . . . . . . . . . . . . . . . Parts Melted 3 | . . . . . . . . . . . . . . . . . . . . 3 . Heat Transferred 75 | 75 . . . . . . . . . . . . . . . . . . . . . Parts Sabotaged . | . . . . . . . . . . . . . . . . . . . . . . Parts Stolen . | . . . . . . . . . . . . . . . . . . . . . . Parts Stripped . | . . . . . . . . . . . . . . . . . . . . . . Power Chain Reactions . | . . . . . . . . . . . . . . . . . . . . . . Alert | -11 -10 -10 -10 -9 -8 -7 -7 -7 -7 -7 -6 -6 -6 -6 -6 -5 -5 -5 -5 -5 -4 ------- Run | Yrd Mat Min Exi Min Mat Fac Was Fac Low Zio Pro Fac Low Low Dat Pro Fac Was Fac Ext Fac Peak Influence 580 | 10 143 110 . 125 500 310 70 438 . . . 580 . . . . 236 56 314 416 368 Initial 212 | . 6 7 . . . 212 55 49 . . . . . . . . 18 26 15 131 14 Average 128 | 7 63 31 . 27 251 191 63 114 . . . 189 . . . . 74 17 145 104 27 Maximum Alert Level 2 | . . . . . 2 1 . 2 . . . 2 . . . . 1 . 1 2 1 Low Security (%) 74 | 100 100 100 . 100 36 66 100 74 . . . 62 . . . . 85 100 71 71 98 Level 1 20 | . . . . . 36 33 . 23 . . . 23 . . . . 14 . 28 26 1 Level 2 5 | . . . . . 27 . . 1 . . . 14 . . . . . . . 2 . Level 3 . | . . . . . . . . . . . . . . . . . . . . . . Level 4 . | . . . . . . . . . . . . . . . . . . . . . . Level 5 . | . . . . . . . . . . . . . . . . . . . . . . High Security . | . . . . . . . . . . . . . . . . . . . . . . Max Security . | . . . . . . . . . . . . . . . . . . . . . . Squads Dispatched 75 | . 2 . . . 8 8 . 16 . . . 10 . . . . 10 . 14 2 5 Investigation 41 | . 1 . . . 3 6 . 10 . . . 6 . . . . 6 . 7 1 1 Extermination 19 | . . . . . . 2 . 6 . . . 3 . . . . 1 . 3 . 4 Reinforcement 8 | . 1 . . . 2 . . . . . . 1 . . . . 2 . 1 1 . Assault 2 | . . . . . . . . . . . . . . . . . . . 2 . . Garrison 5 | . . . . . 3 . . . . . . . . . . . 1 . 1 . . Intercept . | . . . . . . . . . . . . . . . . . . . . . . Searches Triggered 1 | . . . . . . . . . . . . 1 . . . . . . . . . Construction Impeded 1 | . . . . . . . . . . . . . . . . . . . 1 . . Haulers Reinforced . | . . . . . . . . . . . . . . . . . . . . . . Active Scanning Responses . | . . . . . . . . . . . . . . . . . . . . . . Cargo Convoy Interrupts 1 | . . . . . . . . . . . . . . . . . . . 1 . . Stealth | -11 -10 -10 -10 -9 -8 -7 -7 -7 -7 -7 -6 -6 -6 -6 -6 -5 -5 -5 -5 -5 -4 --------- Run | Yrd Mat Min Exi Min Mat Fac Was Fac Low Zio Pro Fac Low Low Dat Pro Fac Was Fac Ext Fac Distress Signals 15 | . . . . . 4 . . 2 . . . 1 . . . . . . 5 1 2 Communications Jammed . | . . . . . . . . . . . . . . . . . . . . . . Distress Signals . | . . . . . . . . . . . . . . . . . . . . . . Times Spotted 354 | . 16 7 . 8 58 26 5 34 . . 3 52 3 . . 4 23 2 67 19 27 Peak Tracking Total 11 | . 3 3 . 4 6 5 5 7 . . . 11 3 . . 3 5 2 10 4 7 Tactical Retreats 70 | . . . . 1 4 7 . 10 . . . 11 . . . 2 5 . 22 2 6 Traps | -11 -10 -10 -10 -9 -8 -7 -7 -7 -7 -7 -6 -6 -6 -6 -6 -5 -5 -5 -5 -5 -4 ------- Run | Yrd Mat Min Exi Min Mat Fac Was Fac Low Zio Pro Fac Low Low Dat Pro Fac Was Fac Ext Fac Traps Triggered 29 | . 2 . . . 3 7 . 5 . . . . . . . . 5 . 5 2 . Indirectly . | . . . . . . . . . . . . . . . . . . . . . . Trap Hack Attempts . | . . . . . . . . . . . . . . . . . . . . . . Triggered . | . . . . . . . . . . . . . . . . . . . . . . Disarmed . | . . . . . . . . . . . . . . . . . . . . . . Reprogrammed 12 | . . . . . . 12 . . . . . . . . . . . . . . . Reused . | . . . . . . . . . . . . . . . . . . . . . . Traps Extracted . | . . . . . . . . . . . . . . . . . . . . . . Installed . | . . . . . . . . . . . . . . . . . . . . . . Triggered 1 | . . . . . . . . . . . . . . . . 1 . . . . . Machines | -11 -10 -10 -10 -9 -8 -7 -7 -7 -7 -7 -6 -6 -6 -6 -6 -5 -5 -5 -5 -5 -4 ---------- Run | Yrd Mat Min Exi Min Mat Fac Was Fac Low Zio Pro Fac Low Low Dat Pro Fac Was Fac Ext Fac Machines Disabled 9 | . . . . . 1 . . . . . . 2 . . . 1 1 . 2 2 . Max in Single Turn 2 | . . . . . 1 . . . . . . 2 . . . 1 1 . 2 . . Garrison Access 13 | . . . . . . 2 . 1 . . . 2 . . . . 3 . 3 . 2 Machines Repaired . | . . . . . . . . . . . . . . . . . . . . . . Machines Dismantled . | . . . . . . . . . . . . . . . . . . . . . . Machines Sabotaged 1 | . . . . . . . . 1 . . . . . . . . . . . . . Overloaded Fab Kills . | . . . . . . . . . . . . . . . . . . . . . . Hacking | -11 -10 -10 -10 -9 -8 -7 -7 -7 -7 -7 -6 -6 -6 -6 -6 -5 -5 -5 -5 -5 -4 --------- Run | Yrd Mat Min Exi Min Mat Fac Was Fac Low Zio Pro Fac Low Low Dat Pro Fac Was Fac Ext Fac Machines Accessed 161 | . 6 1 1 . 10 21 . 28 . . . 23 . . 4 . 25 . 25 2 15 Terminals 90 | . 6 1 . . 5 16 . 14 . . . 10 . . . . 15 . 14 2 7 Fabricators 22 | . . . . . . 1 . 6 . . . 5 . . . . 3 . 5 . 2 Repair Stations 10 | . . . . . 1 . . 3 . . . 1 . . . . 1 . 3 . 1 Recycling Units 11 | . . . . . 1 1 . 2 . . . 4 . . . . 1 . . . 2 Scanalyzers 3 | . . . . . 2 . . . . . . . . . . . 1 . . . . Garrison Access 20 | . . . . . 1 3 . 3 . . . 3 . . . . 4 . 3 . 3 Total Hacks 461 | . 16 1 1 . 35 61 . 73 . . . 65 . . 27 . 74 . 62 11 35 Successful 358 | . 5 . 1 . 22 36 . 53 . . . 61 . . 27 . 54 . 56 11 32 Failed 101 | . 11 1 . . 13 25 . 19 . . . 3 . . . . 20 . 6 . 3 Catastrophic 12 | . . 1 . . 5 1 . 2 . . . . . . . . 3 . . . . Database Lockouts 2 | . . . . . . . . 1 . . . 1 . . . . . . . . . Manual 222 | . 16 1 . . 14 33 . 35 . 1 . 38 . . . . 35 . 35 4 10 Terminals 271 | . 16 1 . . 16 47 . 31 . . . 34 . . . . 55 . 38 11 22 Fabricators 51 | . . . . . . 3 . 14 . . . 11 . . . . 8 . 11 . 4 Repair Stations 35 | . . . . . 2 . . 15 . . . 4 . . . . 2 . 8 . 4 Recycling Units 31 | . . . . . 3 6 . 7 . . . 12 . . . . 1 . . . 2 Scanalyzers 14 | . . . . . 12 . . . . . . . . . . . 2 . . . . Garrison Access 31 | . . . . . 2 5 . 6 . . . 4 . . . . 6 . 5 . 3 Terminal Hacks 164 | . 1 . 1 . 2 19 . 11 . . . 24 . . 27 . 28 . 25 11 15 Record 12 | . . . 1 . . . . . . . . . . . 11 . . . . . . Part Schematic 27 | . . . . . . 1 . 1 . . . 6 . . 9 . 5 . 2 . 3 Robot Schematic 5 | . . . . . . 1 . . . . . . . . 4 . . . . . . Robot Analysis 6 | . . . . . 2 . . . . . . . . . . . 1 . 2 . 1 Prototype ID Bank 3 | . . . . . . . . . . . . . . . 3 . . . . . . Open Door 2 | . . . . . . . . . . . . . . . . . 1 . 1 . . Level Access Points 5 | . . . . . . 1 . . . . . 1 . . . . 1 . 1 . 1 Branch Access Points 5 | . . . . . . 1 . . . . . 1 . . . . 1 . 1 . 1 Emergency Access Points 1 | . . . . . . 1 . . . . . . . . . . . . . . . Machine Index 5 | . . . . . . . . 1 . . . 1 . . . . 1 . 1 . 1 Terminal Index 5 | . 1 . . . . 1 . 1 . . . 1 . . . . 1 . . . . Fabricator Index 1 | . . . . . . 1 . . . . . . . . . . . . . . . Repair Station Index 1 | . . . . . . 1 . . . . . . . . . . . . . . . Recycling Unit Index 1 | . . . . . . 1 . . . . . . . . . . . . . . . Alert Level 6 | . . . . . . . . . . . . 1 . . . . 1 . 1 2 1 Unreport Threat 17 | . . . . . . . . . . . . 3 . . . . 2 . 4 5 3 Locate Traps 3 | . . . . . . 1 . . . . . . . . . . 2 . . . . Reprogram Traps 2 | . . . . . . 2 . . . . . . . . . . . . . . . Dispatch Records 4 | . . . . . . 1 . . . . . 1 . . . . 1 . . 1 . Maintenance Status 1 | . . . . . . . . . . . . . . . . . . . 1 . . Surveillance Status 1 | . . . . . . . . . . . . . . . . . . . . . 1 Patrol Status 1 | . . . . . . . . . . . . 1 . . . . . . . . . Recall Investigation 21 | . . . . . . 1 . 4 . . . 4 . . . . 5 . 5 1 1 Recall Extermination 13 | . . . . . . 2 . 4 . . . 3 . . . . 1 . 3 . . Recall Reinforcements 3 | . . . . . . . . . . . . 1 . . . . 1 . . 1 . Recall Assault 1 | . . . . . . . . . . . . . . . . . . . 1 . . Hauler Manifests 1 | . . . . . . 1 . . . . . . . . . . . . . . . Registered Components 4 | . . . . . . 1 . . . . . . . . . . 1 . 1 . 1 Zone Layout 7 | . . . . . . 1 . . . . . . . . . . 3 . 1 1 1 Fabricator Hacks 50 | . . . . . . 3 . 13 . . . 11 . . . . 8 . 11 . 4 Network Status 7 | . . . . . . 1 . 1 . . . 1 . . . . 2 . . . 2 Load Schematic 22 | . . . . . . 1 . 6 . . . 5 . . . . 3 . 6 . 1 Build 21 | . . . . . . 1 . 6 . . . 5 . . . . 3 . 5 . 1 Repair Station Hacks 31 | . . . . . 2 . . 11 . . . 4 . . . . 2 . 8 . 4 Scan Component 16 | . . . . . 1 . . 6 . . . 2 . . . . 1 . 4 . 2 Repair 15 | . . . . . 1 . . 5 . . . 2 . . . . 1 . 4 . 2 Recycling Unit Hacks 14 | . . . . . 1 1 . 2 . . . 7 . . . . 1 . . . 2 Report Inventory 11 | . . . . . 1 1 . 2 . . . 4 . . . . 1 . . . 2 Retrieve Components 3 | . . . . . . . . . . . . 3 . . . . . . . . . Scanalyzer 14 | . . . . . 12 . . . . . . . . . . . 2 . . . . Insert Component 7 | . . . . . 6 . . . . . . . . . . . 1 . . . . Analyze 7 | . . . . . 6 . . . . . . . . . . . 1 . . . . Garrison Access Hacks 11 | . . . . . . 2 . 1 . . . 2 . . . . 3 . 1 . 2 Seal Access 11 | . . . . . . 2 . 1 . . . 2 . . . . 3 . 1 . 2 Unauthorized Hacks 74 | . 4 . . . 5 11 . 15 . . . 13 . . . . 10 . 11 . 5 Terminals 48 | . 4 . . . 3 8 . 8 . . . 6 . . . . 8 . 7 . 4 Track 2 | . . . . . . . . . . . . . . . . . . . 2 . . Assimilate 16 | . 1 . . . 1 5 . 2 . . . 3 . . . . 2 . 1 . 1 Botnet 21 | . 2 . . . 1 2 . 4 . . . 2 . . . . 5 . 3 . 2 Operators 8 | . 1 . . . 1 1 . 1 . . . 1 . . . . 1 . 1 . 1 Sabotage 1 | . . . . . . . . 1 . . . . . . . . . . . . . Fabricators . | . . . . . . . . . . . . . . . . . . . . . . Repair Stations . | . . . . . . . . . . . . . . . . . . . . . . Recycling Units 14 | . . . . . 2 3 . 4 . . . 5 . . . . . . . . . Monitor 2 | . . . . . . . . 1 . . . 1 . . . . . . . . . Reject 4 | . . . . . 1 1 . 1 . . . 1 . . . . . . . . . Recyclers 4 | . . . . . . 1 . 1 . . . 2 . . . . . . . . . Mask 4 | . . . . . 1 1 . 1 . . . 1 . . . . . . . . . Scanalyzers . | . . . . . . . . . . . . . . . . . . . . . . Garrison Access 12 | . . . . . . . . 3 . . . 2 . . . . 2 . 4 . 1 Decoy 1 | . . . . . . . . 1 . . . . . . . . . . . . . Reprogram 5 | . . . . . . . . 1 . . . 1 . . . . 1 . 2 . . Watchers 6 | . . . . . . . . 1 . . . 1 . . . . 1 . 2 . 1 Data Cores Recovered 1 | . . . . . . . . . . . . . . . . . . . 1 . . Used 1 | . . . . . . . . . . . . . . . . . . . 1 . . Hacking Detections 101 | . 6 1 . . 9 14 . 24 . . . 15 . . . . 13 . 11 1 7 Full Trace Events 29 | . 2 . . . 2 5 . 6 . . . 5 . . . . 3 . 5 . 1 Feedback Events . | . . . . . . . . . . . . . . . . . . . . . . Feedback Blocked 1 | . . . . . . 1 . . . . . . . . . . . . . . . Robot Schematics Acquired 8 | . . . . . . 1 . . . 3 . . . . 4 . . . . . . Robots Built 2 | . . . . . . . . 2 . . . . . . . . . . . . . Authchips . | . . . . . . . . . . . . . . . . . . . . . . Time 174 | . . . . . . . . 174 . . . . . . . . . . . . . Total Robot Build Rating 6 | . . . . . . . . 6 . . . . . . . . . . . . . Part Schematics Acquired 49 | . . . . . 5 1 . 1 . 16 . 6 . . 9 . 6 . 2 . 3 Parts Built 23 | . . . . . . 1 . 4 . . . 5 . . . . 4 . 8 . 1 Authchips . | . . . . . . . . . . . . . . . . . . . . . . Time 1541 | . . . . . . 73 . 194 . . . 359 . . . . 318 . 541 . 56 Total Part Build Rating 142 | . . . . . . 3 . 24 . . . 29 . . . . 24 . 56 . 6 Parts Repaired 15 | . . . . . 1 . . 5 . . . 2 . . . . 1 . 4 . 2 Time 891 | . . . . . 136 . . 224 . . . 140 . . . . 29 . 306 . 56 Parts Recycled . | . . . . . . . . . . . . . . . . . . . . . . Recycled Matter . | . . . . . . . . . . . . . . . . . . . . . . Retrieved Matter . | . . . . . . . . . . . . . . . . . . . . . . Retrieved Components 7 | . . . . . . . . . . . . 7 . . . . . . . . . Parts Scanalyzed 6 | . . . . . 5 . . . . . . . . . . . 1 . . . . Part Schematics Acquired 6 | . . . . . 5 . . . . . . . . . . . 1 . . . . Parts Damaged 1 | . . . . . 1 . . . . . . . . . . . . . . . . Bothacking | -11 -10 -10 -10 -9 -8 -7 -7 -7 -7 -7 -6 -6 -6 -6 -6 -5 -5 -5 -5 -5 -4 ------------ Run | Yrd Mat Min Exi Min Mat Fac Was Fac Low Zio Pro Fac Low Low Dat Pro Fac Was Fac Ext Fac Used RIF Installer . | . . . . . . . . . . . . . . . . . . . . . . Robots Hacked . | . . . . . . . . . . . . . . . . . . . . . . Non-combat . | . . . . . . . . . . . . . . . . . . . . . . Combat . | . . . . . . . . . . . . . . . . . . . . . . Robot Hacks Applied . | . . . . . . . . . . . . . . . . . . . . . . Relay Couplers Released 6 | . . . . . . . . . . . . . . . . . 3 . 3 . . Machine Destruction 3 | . . . . . . . . . . . . . . . . . . . 3 . . Programmers 3 | . . . . . . . . . . . . . . . . . 3 . . . . Fabnet Peak Effective % . | . . . . . . . . . . . . . . . . . . . . . . Robots Rewired 10 | . . . . . . . . . . . . . . . . . . . . 10 . Allies Hacked . | . . . . . . . . . . . . . . . . . . . . . . Hacks Repelled . | . . . . . . . . . . . . . . . . . . . . . . Allies | -11 -10 -10 -10 -9 -8 -7 -7 -7 -7 -7 -6 -6 -6 -6 -6 -5 -5 -5 -5 -5 -4 -------- Run | Yrd Mat Min Exi Min Mat Fac Was Fac Low Zio Pro Fac Low Low Dat Pro Fac Was Fac Ext Fac Total Allies 58 | . . 1 . . 1 4 . 7 . . . 2 . . . . 3 19 8 12 1 Largest Group 19 | . . 1 . . 1 2 . 4 . . . 1 1 1 1 1 1 19 10 8 1 Highest-Rated Group 684 | . . 31 . . 10 52 . 74 . . . 37 10 10 10 10 83 684 363 356 26 Highest-Rated Ally 159 | . . 31 . . 10 26 . 26 . . . 37 10 10 10 10 83 50 46 159 26 Total Orders 38 | . . . . . 2 8 . 5 . . . 8 2 . . . 6 . 5 . 2 STAY 20 | . . . . . 1 4 . 3 . . . 4 1 . . . 3 . 3 . 1 FOLLOW 18 | . . . . . 1 4 . 2 . . . 4 1 . . . 3 . 2 . 1 Ally Attacks 426 | . . 3 . . . . . 42 . . . 3 . . . . 6 130 91 151 . Total Damage 10177 | . . 22 . . . . . 450 . . . 59 . . . . 238 4197 1392 3819 . Kills 41 | . . . . . . . . 5 . . . 1 . . . . 1 6 9 19 . Allies Corrupted 1 | . . . . . 1 . . . . . . . . . . . . . . . . Allies Melted 3 | . . . . . . . . . . . . . . . . . . . 1 2 . Intel | -11 -10 -10 -10 -9 -8 -7 -7 -7 -7 -7 -6 -6 -6 -6 -6 -5 -5 -5 -5 -5 -4 ------- Run | Yrd Mat Min Exi Min Mat Fac Was Fac Low Zio Pro Fac Low Low Dat Pro Fac Was Fac Ext Fac Robot Analysis Total 6 | . . . . . 2 . . . . . . . . . . . 1 . 2 . 1 Derelict Logs Recovered 9 | . . 2 . . . . . . . . 2 . 2 2 . 1 . . . . . Drone Launches . | . . . . . . . . . . . . . . . . . . . . . . Drone Recoveries . | . . . . . . . . . . . . . . . . . . . . . . Exploration | -11 -10 -10 -10 -9 -8 -7 -7 -7 -7 -7 -6 -6 -6 -6 -6 -5 -5 -5 -5 -5 -4 ------------- Run | Yrd Mat Min Exi Min Mat Fac Was Fac Low Zio Pro Fac Low Low Dat Pro Fac Was Fac Ext Fac Turns Passed 23395 | 40 1363 565 101 444 2604 2481 28 2770 58 515 324 2439 271 198 33 424 1738 181 2805 952 3061 Spaces Moved 32010 | 19 781 401 126 359 1502 4491 86 4215 177 1458 539 4603 745 544 80 509 3321 239 5376 1014 1425 Core . | . . . . . . . . . . . . . . . . . . . . . . Treads 10 | . . 4 . . 6 . . . . . . . . . . . . . . . . Legs 1008 | 19 781 208 . . . . . . . . . . . . . . . . . . . Wheels 2195 | . . 189 126 359 1496 25 . . . . . . . . . . . . . . . Hover . | . . . . . . . . . . . . . . . . . . . . . . Flight 28797 | . . . . . . 4466 86 4215 177 1458 539 4603 745 544 80 509 3321 239 5376 1014 1425 Fastest Speed 7 | 120 120 80 80 80 110 32 32 32 32 32 32 32 32 32 32 32 32 32 19 19 7 Average Speed 38 | 120 120 105 80 92 117 32 32 32 32 32 32 32 32 32 32 32 32 32 24 19 18 Slowest Speed 240 | 120 120 160 80 110 240 165 32 100 32 32 32 35 32 32 32 32 32 32 100 19 22 Overloaded Moves 22 | . . . . . . . . . . . . . . . . . . . . . 22 Propulsion Burnouts . | . . . . . . . . . . . . . . . . . . . . . . Robots Hopped 124 | . . . . . . 24 . 23 . . . 26 1 . . . 15 . 24 6 5 Cave-ins Triggered 31 | . . . . . . . . 2 . . . . . . . 2 1 . 1 . 25 Exploration Rate (%) 67 | 2 95 63 47 70 93 85 75 71 33 85 68 69 82 74 70 54 73 85 73 79 45 Regions Visited 21 Branch Regions 11 Pre-discovered Areas 8 | . . 1 1 . . . . . . 3 . . 1 . 1 1 . . . . . Known Exits Taken 11 | . . . . . . . . 1 1 1 1 1 1 1 1 1 . . 1 1 . Unknown Exits Taken 6 | 1 1 1 1 1 1 . . . . . . . . . . . . . . . . Scrap Searched 18 | . . . . 2 . . . . 1 3 5 . 3 3 . 1 . . . . . Spaces Dug 286 | . . . . . 6 46 . 62 . . 1 47 . . . 35 34 . 28 . 27 Terrain Destroyed 642 | . . . . . 19 46 . 77 . . 1 53 16 . . 65 70 13 116 52 114 Melee 257 | . . . . . 6 46 . 62 . . 1 36 . . . 17 34 . 28 . 27 Projectile . | . . . . . . . . . . . . . . . . . . . . . . AOE 385 | . . . . . 13 . . 15 . . . 17 16 . . 48 36 13 88 52 87 Terrain Rammed . | . . . . . . . . . . . . . . . . . . . . . . Walls Destroyed . | . . . . . . . . . . . . . . . . . . . . . . Machines Disabled . | . . . . . . . . . . . . . . . . . . . . . . Actions | -11 -10 -10 -10 -9 -8 -7 -7 -7 -7 -7 -6 -6 -6 -6 -6 -5 -5 -5 -5 -5 -4 --------- Run | Yrd Mat Min Exi Min Mat Fac Was Fac Low Zio Pro Fac Low Low Dat Pro Fac Was Fac Ext Fac Total 41930 | 28 1144 516 125 438 2075 5370 85 5456 177 1504 688 5363 774 567 86 729 3873 341 6720 1734 4137 Wait 8880 | 2 317 91 . 35 358 728 . 1126 1 44 149 641 30 24 7 196 456 102 1260 648 2665 Move 31751 | 18 780 400 125 358 1501 4445 85 4170 176 1457 538 4550 742 543 79 508 3293 238 5329 1002 1414 Hop 115 | . . . . . . 22 . 21 . . . 26 1 . . . 13 . 22 5 5 Pick Up 70 | 2 5 2 . 8 15 6 . 7 . 1 . 12 . . . . 6 . 4 1 1 Fast Attach 79 | 1 2 1 . 2 16 6 . 9 . . . 13 . . . 1 7 . 18 1 2 Attach 51 | . . 3 . . 9 8 . 4 . . . 9 . . . 1 4 . 7 1 5 Detach 19 | . . . . . 3 1 . 1 . . . 6 . . . 1 . . 6 1 . Swap 50 | . 2 . . 5 11 1 . 8 . . . 9 . . . 1 1 . 11 . 1 Drop 96 | 1 6 2 . 4 13 22 . 8 . 1 . 20 . . . . 7 . 10 . 2 Fire 277 | 4 32 17 . 26 143 9 . 4 . . . 6 1 . . 3 5 1 10 5 11 Melee 386 | . . . . . 6 73 . 80 . 1 1 71 . . . 18 50 . 43 13 30 Ram . | . . . . . . . . . . . . . . . . . . . . . . Kick . | . . . . . . . . . . . . . . . . . . . . . . Crush . | . . . . . . . . . . . . . . . . . . . . . . Escape Stasis 132 | . . . . . . 49 . 18 . . . . . . . . 31 . . 33 1 Rewire 24 | . . . . . . . . . . . . . . . . . . . . 24 . Trap . | . . . . . . . . . . . . . . . . . . . . . . Miscellaneous . | . . . . . . . . . . . . . . . . . . . . . . Route ------- -11/Scrapyard -10/Materials (discovered 4 exits: [*Mat x3] / *Min) -10/Mines -10/Exiles -9/Mines -8/Materials (discovered 2 exits: *Fac x2) -7/Factory (discovered 8 exits: *Fac x4 / *Sto x2 / *Low x2) -7/Waste -7/Factory (discovered 5 exits: *Fac x3 / *Sto / *Low) -7/Lower Caves -7/Zion -6/Proximity Caves -6/Factory (discovered 6 exits: *Fac x4 / *Low x2) -6/Lower Caves -6/Lower Caves -6/Data Miner -5/Proximity Caves -5/Factory (discovered 8 exits: *Fac x4 / *Upp x2 / *Ext x2) -5/Waste -5/Factory (discovered 8 exits: *Fac x4 / *Upp x2 / *Ext x2) -5/Extension (discovered 2 exits: *Fac / [*Cet]) -4/Factory (discovered 6 exits: *Res x4 / *Upp x2) History --------- Turn | Location | Event 1 | -11/Scrapyard | Discovered new exit (range 3) 41 | -11/Scrapyard | Entered Materials 305 | -10/Materials | Build established: Mutant 337 | -10/Materials | Discovered new exit (range 4) 398 | -10/Materials | Discovered new exit (range 15) 670 | -10/Materials | Discovered new exit (range 3) 802 | -10/Materials | Discovered new exit (range 13) 1404 | -10/Materials | Entered Mines 1418 | -10/Mines | Learned Materials stockpile data 1471 | -10/Mines | Met a Derelict bent on vengeance 1521 | -10/Mines | Assembled infested the area 1521 | -10/Mines | Met a Derelict testing a Signal Generator 1659 | -10/Mines | Learned location of Zion (-7) 1726 | -10/Mines | Deemed a non-threat by the Exiles lab entrance 1727 | -10/Mines | Discovered new exit (range 5) 1923 | -10/Mines | Found a damaged Exp. Sensor Array with a note attached 1925 | -10/Mines | Found Prototype Device 1969 | -10/Mines | Entered Exiles 1990 | -10/Exiles | Met 8R-AWN 2003 | -10/Exiles | Met EX-HEX 2062 | -10/Exiles | Discovered new exit (range 10) 2070 | -10/Exiles | Entered Mines 2207 | -9/Mines | Found a hidden stash of uninstalled traps 2354 | -9/Mines | Core integrity fell below 50% 2431 | -9/Mines | Received a Rocket Launcher from a helpful Derelict 2452 | -9/Mines | Joined a pair of Derelicts in attacking an 0b10 outpost 2495 | -9/Mines | Discovered new exit (range 9) 2514 | -9/Mines | Entered Materials 2514 | -8/Materials | Evolved 4 slots: Utility x4 2646 | -8/Materials | Build established: Scavenger-Mutant 2911 | -8/Materials | Discovered new exit (range 8) 3244 | -8/Materials | Build established: Mutant 3928 | -8/Materials | Build established: Scavenger-Mutant 4021 | -8/Materials | Identified Exp. Sensor Array 4215 | -8/Materials | Repaired Broken Exp. Sensor Array? 4534 | -8/Materials | Discovered new exit (range 15) 4843 | -8/Materials | Garrison activated, responded to threat 5118 | -8/Materials | Entered Factory 5118 | -7/Factory | Evolved 2 slots: Utility x2 5363 | -7/Factory | Identified exit to Factory 5621 | -7/Factory | Identified exit to Storage 5621 | -7/Factory | Identified exit to Lower Caves 5774 | -7/Factory | Build established: Hacker-Sprinter 6465 | -7/Factory | Fabricated Hacking Suite? 7359 | -7/Factory | Build established: Wizard-Sprinter 7599 | -7/Factory | Sucked down chute 7599 | -7/Factory | Entered Waste 7610 | -7/Waste | Spotted C-40 Crusher 7612 | -7/Waste | Spotted C-40 Crusher 7613 | -7/Waste | Spotted C-40 Crusher 7614 | -7/Waste | EMP discharged 7614 | -7/Waste | System corruption reached 10% 7618 | -7/Waste | Spotted C-40 Crusher 7620 | -7/Waste | Discovered new exit (range 16) 7621 | -7/Waste | Spotted C-40 Crusher 7626 | -7/Waste | Identified exit to Factory 7627 | -7/Waste | Entered Factory 7990 | -7/Factory | Repaired System Restoration Module 8130 | -7/Factory | Discovered exit to Factory (range 13) 8219 | -7/Factory | Repaired System Restoration Module 8258 | -7/Factory | Repaired Exp. Sensor Array 8315 | -7/Factory | Repaired System Restoration Module 8560 | -7/Factory | Repaired Lgt. Deuterium Engine 8573 | -7/Factory | Crushed by falling debris 8587 | -7/Factory | Discovered exit to Factory (range 4) 8663 | -7/Factory | Build established: Hacker-Sprinter 8757 | -7/Factory | Discovered exit to Storage (range 9) 8923 | -7/Factory | Discovered exit to Lower Caves (range 11) 8990 | -7/Factory | Crushed by falling debris 9178 | -7/Factory | Fabricated O-24 Administrator (x1) 9409 | -7/Factory | Fabricated O-24 Administrator? 9418 | -7/Factory | Central database locked down 9529 | -7/Factory | Fabricated Adv. Hacking Suite (x1) 9600 | -7/Factory | Fabricated Adv. Hacking Suite (x1) 9826 | -7/Factory | Build established: Wizard-Sprinter 9883 | -7/Factory | Fabricated Adv. Hacking Suite (x1) 10185 | -7/Factory | Fabricated Adv. Hacking Suite? 10347 | -7/Factory | Discovered exit to Factory (range 7) 10397 | -7/Factory | Entered Lower Caves 10443 | -7/Lower Caves | Encountered a Warlord checkpoint 10450 | -7/Lower Caves | A Derelict revealed a hidden shortcut to a safe place 10454 | -7/Lower Caves | Identified exit to Zion 10455 | -7/Lower Caves | Entered Zion 10468 | -7/Zion | Found CR-A16's Pointy Stick 10479 | -7/Zion | System corruption cleaned by Quarantine Array 10491 | -7/Zion | Discovered new exit (range 16) 10494 | -7/Zion | Acquired unknown access codes intercepted by a Zionite 10521 | -7/Zion | Learned Factory emergency access door positions 10529 | -7/Zion | Learned location of Quarantine (-2) 10532 | -7/Zion | Received a visual enhancement algorithm 10566 | -7/Zion | Learned location of Data Miner (-6) 10643 | -7/Zion | Learned location of Armory (-3) 10969 | -7/Zion | Identified exit to Proximity Caves 10970 | -7/Zion | Entered Proximity Caves 10972 | -6/Proximity Caves | Learned Factory emergency access door positions 11062 | -6/Proximity Caves | Spotted B-75 Beast 11090 | -6/Proximity Caves | Learned Factory emergency access door positions 11289 | -6/Proximity Caves | Discovered exit to Factory (range 13) 11294 | -6/Proximity Caves | Entered Factory 11294 | -6/Factory | Evolved 2 slots: Utility x2 11846 | -6/Factory | Fabricated Exp. Utility Shielding? 11911 | -6/Factory | Discovered new exit (range 11) 11916 | -6/Factory | Identified exit to Lower Caves 11929 | -6/Factory | Build established: Wizard-Mutant 12070 | -6/Factory | Fabricated Exp. Sensor Array? 12160 | -6/Factory | Fabricated Imp. Cesium-ion Thruster? 12470 | -6/Factory | Build established: Wizard-Sprinter 12817 | -6/Factory | Discovered new exit (range 4) 12829 | -6/Factory | Identified exit to Factory 12933 | -6/Factory | Fabricated Adv. System Shield (x1) 13017 | -6/Factory | Central database locked down 13044 | -6/Factory | Search patrols dispatched 13094 | -6/Factory | Repaired Mni. Grenade Launcher? 13260 | -6/Factory | Fabricated Mni. Smartbomb Launcher? 13658 | -6/Factory | Repaired Exp. Sensor Array 13733 | -6/Factory | Entered Lower Caves 13733 | -6/Lower Caves | Accompanied by 1 ally 13975 | -6/Lower Caves | Learned location of Extension (-5) 13975 | -6/Lower Caves | Discovered new exit (range 16) 13983 | -6/Lower Caves | Learned 8 Factory zone layouts 14004 | -6/Lower Caves | Identified exit to Lower Caves 14004 | -6/Lower Caves | Entered another Lower Caves area 14004 | -6/Lower Caves | Accompanied by 1 ally 14078 | -6/Lower Caves | Encountered a Warlord checkpoint 14083 | -6/Lower Caves | Learned Factory emergency access door positions 14151 | -6/Lower Caves | Discovered new exit (range 13) 14156 | -6/Lower Caves | Identified exit to Data Miner 14202 | -6/Lower Caves | Entered Data Miner 14202 | -6/Data Miner | Accompanied by 1 ally 14202 | -6/Data Miner | Discovered new exit (range 6) 14209 | -6/Data Miner | Met Data Miner 14216 | -6/Data Miner | Learned location of Section 7 (-2) 14216 | -6/Data Miner | Acquired the access code to Warlord's prototype stash 14221 | -6/Data Miner | Received God Mode back door access code from Data Miner 14227 | -6/Data Miner | Identified exit to Proximity Caves 14235 | -6/Data Miner | Entered Proximity Caves 14235 | -5/Proximity Caves | Accompanied by 1 ally 14266 | -5/Proximity Caves | Acquired the password to a Derelict Tinkerer's latest research 14315 | -5/Proximity Caves | Learned location of Warlord (-4) 14487 | -5/Proximity Caves | Spotted B-75 Beast 14586 | -5/Proximity Caves | Crushed by falling debris 14596 | -5/Proximity Caves | Caught by Unaware searching for contraband prototypes 14621 | -5/Proximity Caves | Crushed by falling debris 14656 | -5/Proximity Caves | Discovered exit to Factory (range 10) 14659 | -5/Proximity Caves | Entered Factory 14659 | -5/Factory | Evolved 2 slots: Propulsion x1, Utility x1 14660 | -5/Factory | Identified exit to Upper Caves 14743 | -5/Factory | Identified exit to Extension 14743 | -5/Factory | Identified exit to Factory 14914 | -5/Factory | Crushed by falling debris 15187 | -5/Factory | Spotted B-75 Beast 15304 | -5/Factory | Fabricated Adv. Hacking Suite (x1) 15446 | -5/Factory | Garrison activated, responded to threat 15874 | -5/Factory | Fabricated Adv. Hacking Suite? 16179 | -5/Factory | Fabricated Imp. Corruption Screen? 16318 | -5/Factory | Repaired Mni. Smartbomb Launcher 16397 | -5/Factory | Sucked down chute 16397 | -5/Factory | Entered Waste 16401 | -5/Waste | Spotted C-40 Crusher 16404 | -5/Waste | Warlord forces began an assault 16439 | -5/Waste | Allies destroyed C-40 Crusher 16440 | -5/Waste | Spotted C-40 Crusher 16443 | -5/Waste | Allies destroyed C-40 Crusher 16447 | -5/Waste | Spotted C-40 Crusher 16462 | -5/Waste | Spotted C-40 Crusher 16468 | -5/Waste | Allies destroyed C-40 Crusher 16476 | -5/Waste | Allies destroyed C-40 Crusher 16482 | -5/Waste | Spotted C-40 Crusher 16482 | -5/Waste | Destroyed C-40 Crusher 16494 | -5/Waste | Discovered new exit (range 10) 16501 | -5/Waste | Lost 7 allies 16518 | -5/Waste | Identified exit to Factory 16578 | -5/Waste | Entered Factory 16578 | -5/Factory | Accompanied by 10 allies 16651 | -5/Factory | Garrison activated, responded to threat 16713 | -5/Factory | Lost 7 allies 16739 | -5/Factory | Fabricated Exp. Hacking Suite? 16941 | -5/Factory | Discovered exit to Factory (range 8) 17064 | -5/Factory | Repaired Exp. Sensor Array 17275 | -5/Factory | Build established: Wizard-Mutant 17307 | -5/Factory | Fabricated Adv. Surge Thruster? 17626 | -5/Factory | Build established: Wizard-Sprinter 17676 | -5/Factory | Cargo convoy interrupted 17678 | -5/Factory | Fabricated Adv. Gravity Neutralizer? 17789 | -5/Factory | Fabricated Adv. Surge Thruster (x2) 18623 | -5/Factory | Repaired Exp. Utility Shielding? 18710 | -5/Factory | Repaired Mic. Fission Core 18941 | -5/Factory | Core integrity fell below 50% 18973 | -5/Factory | Lost 3 parts (3n) 19135 | -5/Factory | Fabricated Adv. Surge Thruster (x2) 19282 | -5/Factory | Crushed by falling debris 19365 | -5/Factory | Repaired Adv. Surge Thruster 19383 | -5/Factory | Entered Extension 19548 | -5/Extension | Rescued a captive Derelict 19556 | -5/Extension | Rescued A7 19903 | -5/Extension | Spotted B-75 Beast 19972 | -5/Extension | Destroyed B-75 Beast 20002 | -5/Extension | Spotted B-75 Beast 20023 | -5/Extension | Allies destroyed B-75 Beast 20208 | -5/Extension | Extracted ID and sensor layout for unrecognized location from A7's data core 20333 | -5/Extension | Lost 7 allies 20333 | -5/Extension | Discovered new exit (range 16) 20333 | -5/Extension | Discovered exit to Factory (range 15) 20335 | -5/Extension | Entered Factory 20335 | -4/Factory | Evolved 2 slots: Utility x2 20400 | -4/Factory | Fabricated Fusion Reactor (x1) 20441 | -4/Factory | Identified exit to Upper Caves 20515 | -4/Factory | Repaired Adv. Surge Thruster 20553 | -4/Factory | Repaired Exp. Sensor Array 20675 | -4/Factory | Spotted B-86 Titan 20694 | -4/Factory | Discovered new exit (range 14) 20696 | -4/Factory | Identified exit to Research 20944 | -4/Factory | Crushed by falling debris 20945 | -4/Factory | System corruption reached 10% 20951 | -4/Factory | Crushed by falling debris 20968 | -4/Factory | Crushed by falling debris 20999 | -4/Factory | Lost 8 parts (2n4u2w) 21012 | -4/Factory | Crushed by falling debris 21012 | -4/Factory | System corruption reached 30% 21165 | -4/Factory | Crushed by falling debris 21168 | -4/Factory | Crushed by falling debris 21199 | -4/Factory | Lost 4 parts (4u) 21401 | -4/Factory | Crushed by falling debris 21573 | -4/Factory | Crushed by falling debris 21585 | -4/Factory | Crushed by falling debris 21597 | -4/Factory | Crushed by falling debris 21643 | -4/Factory | Crushed by falling debris 21688 | -4/Factory | Crushed by falling debris 21695 | -4/Factory | Build established: Mutant 21779 | -4/Factory | Crushed by falling debris 21959 | -4/Factory | Crushed by falling debris 22019 | -4/Factory | Crushed by falling debris 22019 | -4/Factory | Core integrity fell below 50% 22126 | -4/Factory | Crushed by falling debris 22161 | -4/Factory | Crushed by falling debris 22228 | -4/Factory | Crushed by falling debris 22638 | -4/Factory | Crushed by falling debris 22792 | -4/Factory | Crushed by falling debris 22808 | -4/Factory | Crushed by falling debris 22808 | -4/Factory | Core integrity fell below 20% 23024 | -4/Factory | Crushed by falling debris 23123 | -4/Factory | Crushed by falling debris 23186 | -4/Factory | Crushed by falling debris 23397 | -4/Factory | Crushed by falling debris 23397 | -4/Factory | Smashed by cave-in Last Messages --------------- 23141_ System corrupted: Substantial component data lost. 23157_ L&%QYBE2#%QZXDLJ|FK6XULWZ6E8QU 23173_ XQ&WHX#2QNSUQC&&>Y#EPVGKI/OHOQLGQ=JKJGL 23186_ The unstable cave ceiling collapses. 23186_ Crushed by falling debris. 23209_ System corrupted: Matter fused (-6). 23226_ System corrupted: Matter fused (-7). 23242_ UK/2JAUWAOAFQGZU=SOBS 23257_ System corrupted: Component data lost. 23272_ System corrupted: Energy discharge (-22). 23288_ System corrupted: Energy discharge (-28). 23318_